[Event "Titled Tuesday Blitz March 28 Late 2023"]
[White "Hartikainen, Jarmo"]
[Black "Li, Hui"]
[WhiteFideId "503134"]
[BlackFideId "15400310"]
[WhiteElo "2155"]
[BlackElo "1967"]
[Result "0-1"]
[Round "08"]
[TimeControl "180+2"]
[Date "2023.03.28"]
[WhiteClock "0:00:07"]
[BlackClock "0:00:08"]

1. e4 {[%clk 0:03:00]}  e5 {[%clk 0:02:57]} 2. Nf3 {[%clk 0:03:00]}  Nf6 {[%clk 0:02:57]} 3. d4 {[%clk 0:02:59]}  exd4 {[%clk 0:02:58]} 4. e5 {[%clk 0:02:59]}  Ne4 {[%clk 0:02:58]} 5. Qxd4 {[%clk 0:02:59]}  d5 {[%clk 0:02:59]} 6. exd6 {[%clk 0:02:59]}  Nxd6 {[%clk 0:02:59]} 7. Nc3 {[%clk 0:02:59]}  Nc6 {[%clk 0:03:00]} 8. Qf4 {[%clk 0:02:59]}  Nf5 {[%clk 0:03:00]} 9. Bb5 {[%clk 0:02:41]}  Bd6 {[%clk 0:03:00]} 10. Qe4+ {[%clk 0:02:33]}  Qe7 {[%clk 0:03:00]} 11. Bxc6+ {[%clk 0:02:31]}  bxc6 {[%clk 0:02:59]} 12. Qxe7+ {[%clk 0:02:29]}  Nxe7 {[%clk 0:02:56]} 13. O-O {[%clk 0:02:26]}  O-O {[%clk 0:02:55]} 14. Re1 {[%clk 0:02:20]}  Nd5 {[%clk 0:02:45]} 15. Ne4 {[%clk 0:02:12]}  Nb4 {[%clk 0:02:31]} 16. Nd4 {[%clk 0:01:34]}  c5 {[%clk 0:02:24]} 17. Nxd6 {[%clk 0:01:09]}  cxd6 {[%clk 0:02:11]} 18. a3 {[%clk 0:01:08]}  cxd4 {[%clk 0:01:13]} 19. axb4 {[%clk 0:01:07]}  Bf5 {[%clk 0:01:14]} 20. Rd1 {[%clk 0:00:53]}  Rfe8 {[%clk 0:01:01]} 21. c4 {[%clk 0:00:37]}  Bc2 {[%clk 0:00:48]} 22. Rf1 {[%clk 0:00:31]}  Bd3 {[%clk 0:00:48]} 23. Rd1 {[%clk 0:00:29]}  Bxc4 {[%clk 0:00:48]} 24. Bf4 {[%clk 0:00:28]}  d3 {[%clk 0:00:38]} 25. Bxd6 {[%clk 0:00:28]}  Re2 {[%clk 0:00:37]} 26. Bc5 {[%clk 0:00:18]}  a6 {[%clk 0:00:33]} 27. Bd4 {[%clk 0:00:17]}  f6 {[%clk 0:00:24]} 28. Bc3 {[%clk 0:00:17]}  Rae8 {[%clk 0:00:22]} 29. h3 {[%clk 0:00:17]}  Rc2 {[%clk 0:00:21]} 30. Rac1 {[%clk 0:00:12]}  Ree2 {[%clk 0:00:19]} 31. Bd4 {[%clk 0:00:08]}  Rxc1 {[%clk 0:00:08]} 32. Rxc1 {[%clk 0:00:07]}  d2 {[%clk 0:00:08]} 33. Rd1 {[%clk 0:00:05]}  Re1+ {[%clk 0:00:09]} 34. Kh2 {[%clk 0:00:06]}  Rxd1 {[%clk 0:00:09]} 35. Kg3 {[%clk 0:00:07]}  Rb1 {[%clk 0:00:08]} 36. Bc3 {[%clk 0:00:06]}  d1=Q {[%clk 0:00:07]} 37. f3 {[%clk 0:00:06]}  Qd3 {[%clk 0:00:07]} 38. Kf2 {[%clk 0:00:06]}  Qc2+ {[%clk 0:00:06]} 39. Kg3 {[%clk 0:00:07]}  Rg1 {[%clk 0:00:06]} 40. Kf4 {[%clk 0:00:07]}  Qxg2 {[%clk 0:00:07]} 41. Ke3 {[%clk 0:00:06]}  Rf1 {[%clk 0:00:07]} 42. Kd4 {[%clk 0:00:07]}  Qxf3 {[%clk 0:00:08]} 43. Kc5 {[%clk 0:00:07]}  Qd5+ {[%clk 0:00:08]} 0-1


[Site "https://www.chess.com"]

[Event "Titled Tuesday Blitz March 28 Late 2023"]
[White "Manu_ChessExcelsior"]
[Black "Nery Junior, Jose Antonio"]
[BlackFideId "2104822"]
[WhiteElo "2110"]
[BlackElo "2197"]
[Result "1/2-1/2"]
[Round "08"]
[TimeControl "180+2"]
[Date "2023.03.28"]
[WhiteClock "0:00:09"]
[BlackClock "0:00:23"]

1. e4 {[%clk 0:02:58]}  c5 {[%clk 0:02:59]} 2. g3 {[%clk 0:02:58]}  g6 {[%clk 0:02:53]} 3. Bg2 {[%clk 0:02:58]}  b5 {[%clk 0:02:53]} 4. d3 {[%clk 0:02:57]}  Bb7 {[%clk 0:02:54]} 5. f4 {[%clk 0:02:58]}  Bg7 {[%clk 0:02:54]} 6. Nf3 {[%clk 0:02:58]}  e6 {[%clk 0:02:54]} 7. O-O {[%clk 0:02:59]}  Ne7 {[%clk 0:02:54]} 8. c3 {[%clk 0:03:00]}  d5 {[%clk 0:02:50]} 9. e5 {[%clk 0:02:46]}  h5 {[%clk 0:02:42]} 10. Be3 {[%clk 0:02:42]}  Nd7 {[%clk 0:02:40]} 11. Bf2 {[%clk 0:02:40]}  O-O {[%clk 0:02:35]} 12. h3 {[%clk 0:02:16]}  a5 {[%clk 0:02:24]} 13. a3 {[%clk 0:02:05]}  Qc7 {[%clk 0:02:07]} 14. Nbd2 {[%clk 0:01:59]}  b4 {[%clk 0:02:05]} 15. axb4 {[%clk 0:01:59]}  axb4 {[%clk 0:02:04]} 16. Qe2 {[%clk 0:01:42]}  bxc3 {[%clk 0:02:03]} 17. bxc3 {[%clk 0:01:41]}  Rxa1 {[%clk 0:01:54]} 18. Rxa1 {[%clk 0:01:42]}  Ra8 {[%clk 0:01:54]} 19. Rxa8+ {[%clk 0:01:41]}  Bxa8 {[%clk 0:01:55]} 20. d4 {[%clk 0:01:35]}  c4 {[%clk 0:01:40]} 21. g4 {[%clk 0:01:34]}  hxg4 {[%clk 0:01:41]} 22. hxg4 {[%clk 0:01:34]}  Bc6 {[%clk 0:01:39]} 23. Nf1 {[%clk 0:01:22]}  Ba4 {[%clk 0:01:37]} 24. Be3 {[%clk 0:01:18]}  Qb6 {[%clk 0:01:31]} 25. Bd2 {[%clk 0:01:16]}  Bc2 {[%clk 0:01:28]} 26. Ne1 {[%clk 0:01:10]}  Qb1 {[%clk 0:01:26]} 27. Ne3 {[%clk 0:01:06]}  Be4 {[%clk 0:01:24]} 28. Kf2 {[%clk 0:01:01]}  Bxg2 {[%clk 0:01:23]} 29. N3xg2 {[%clk 0:00:58]}  Nb6 {[%clk 0:01:15]} 30. Qe3 {[%clk 0:00:38]}  Na4 {[%clk 0:01:12]} 31. Nh4 {[%clk 0:00:33]}  Nb2 {[%clk 0:01:12]} 32. Kg3 {[%clk 0:00:25]}  Nd1 {[%clk 0:01:00]} 33. Qf3 {[%clk 0:00:24]}  Bf8 {[%clk 0:00:53]} 34. f5 {[%clk 0:00:24]}  exf5 {[%clk 0:00:50]} 35. gxf5 {[%clk 0:00:24]}  Nxf5+ {[%clk 0:00:51]} 36. Nxf5 {[%clk 0:00:23]}  gxf5 {[%clk 0:00:50]} 37. Ng2 {[%clk 0:00:17]}  Be7 {[%clk 0:00:46]} 38. Nf4 {[%clk 0:00:15]}  Bg5 {[%clk 0:00:42]} 39. Qxd5 {[%clk 0:00:14]}  Bxf4+ {[%clk 0:00:39]} 40. Kxf4 {[%clk 0:00:13]}  Qd3 {[%clk 0:00:37]} 41. Qd8+ {[%clk 0:00:13]}  Kh7 {[%clk 0:00:31]} 42. Qh4+ {[%clk 0:00:13]}  Kg8 {[%clk 0:00:30]} 43. Qg5+ {[%clk 0:00:13]}  Kf8 {[%clk 0:00:29]} 44. Qd8+ {[%clk 0:00:13]}  Kg7 {[%clk 0:00:28]} 45. Qg5+ {[%clk 0:00:11]}  Kf8 {[%clk 0:00:24]} 46. Qd8+ {[%clk 0:00:09]}  Kg7 {[%clk 0:00:24]} 47. Qg5+ {[%clk 0:00:09]}  Kf8 {[%clk 0:00:23]} 1/2-1/2


[Site "https://www.chess.com"]

[Event "Titled Tuesday Blitz March 28 Late 2023"]
[White "Zampronha, Wladimir Camilo"]
[Black "Oliveira, Tiago Batista"]
[WhiteFideId "2103087"]
[BlackFideId "2108291"]
[WhiteElo "2176"]
[BlackElo "1962"]
[Result "1-0"]
[Round "08"]
[TimeControl "180+2"]
[Date "2023.03.28"]
[WhiteClock "0:00:12"]
[BlackClock "0:00:01"]

1. e4 {[%clk 0:02:55]}  e5 {[%clk 0:02:55]} 2. Nf3 {[%clk 0:02:55]}  Nc6 {[%clk 0:02:55]} 3. d4 {[%clk 0:02:56]}  exd4 {[%clk 0:02:55]} 4. Nxd4 {[%clk 0:02:56]}  Nf6 {[%clk 0:02:55]} 5. Nxc6 {[%clk 0:02:55]}  bxc6 {[%clk 0:02:55]} 6. e5 {[%clk 0:02:56]}  Qe7 {[%clk 0:02:55]} 7. Qe2 {[%clk 0:02:56]}  Nd5 {[%clk 0:02:55]} 8. c4 {[%clk 0:02:57]}  Ba6 {[%clk 0:02:55]} 9. b3 {[%clk 0:02:57]}  Qh4 {[%clk 0:02:54]} 10. a3 {[%clk 0:02:55]}  Bc5 {[%clk 0:02:37]} 11. g3 {[%clk 0:02:54]}  Qe7 {[%clk 0:02:34]} 12. Bb2 {[%clk 0:02:41]}  Qg5 {[%clk 0:02:03]} 13. Bg2 {[%clk 0:02:24]}  O-O {[%clk 0:01:59]} 14. O-O {[%clk 0:02:23]}  Rfe8 {[%clk 0:01:59]} 15. Nd2 {[%clk 0:01:50]}  Bb6 {[%clk 0:01:26]} 16. Rfe1 {[%clk 0:01:41]}  d6 {[%clk 0:01:22]} 17. Nf3 {[%clk 0:01:27]}  Qg6 {[%clk 0:01:09]} 18. Qd2 {[%clk 0:01:24]}  Ne7 {[%clk 0:01:03]} 19. Nh4 {[%clk 0:01:22]}  Qe6 {[%clk 0:00:59]} 20. exd6 {[%clk 0:01:05]}  Qxd6 {[%clk 0:00:59]} 21. Qc3 {[%clk 0:00:56]}  f6 {[%clk 0:00:45]} 22. Rad1 {[%clk 0:00:54]}  Qc5 {[%clk 0:00:40]} 23. Re2 {[%clk 0:00:41]}  Rad8 {[%clk 0:00:37]} 24. Rde1 {[%clk 0:00:40]}  Rd7 {[%clk 0:00:20]} 25. Re4 {[%clk 0:00:33]}  Red8 {[%clk 0:00:15]} 26. R4e2 {[%clk 0:00:29]}  Ng6 {[%clk 0:00:11]} 27. Nxg6 {[%clk 0:00:27]}  hxg6 {[%clk 0:00:11]} 28. Qc2 {[%clk 0:00:28]}  Qg5 {[%clk 0:00:10]} 29. Be4 {[%clk 0:00:24]}  Rd2 {[%clk 0:00:08]} 30. Qc3 {[%clk 0:00:20]}  Rxe2 {[%clk 0:00:07]} 31. Rxe2 {[%clk 0:00:21]}  Rd1+ {[%clk 0:00:07]} 32. Kg2 {[%clk 0:00:20]}  Qe5 {[%clk 0:00:06]} 33. Qxe5 {[%clk 0:00:19]}  fxe5 {[%clk 0:00:06]} 34. Bxc6 {[%clk 0:00:19]}  Bd4 {[%clk 0:00:06]} 35. Bxd4 {[%clk 0:00:18]}  exd4 {[%clk 0:00:06]} 36. Bd5+ {[%clk 0:00:18]}  Kf8 {[%clk 0:00:06]} 37. b4 {[%clk 0:00:18]}  Bc8 {[%clk 0:00:07]} 38. f3 {[%clk 0:00:15]}  Bf5 {[%clk 0:00:07]} 39. g4 {[%clk 0:00:15]}  Bd3 {[%clk 0:00:05]} 40. Rb2 {[%clk 0:00:14]}  Rb1 {[%clk 0:00:04]} 41. Rxb1 {[%clk 0:00:14]}  Bxb1 {[%clk 0:00:05]} 42. Kf2 {[%clk 0:00:14]}  Ke7 {[%clk 0:00:02]} 43. Be4 {[%clk 0:00:14]}  d3 {[%clk 0:00:01]} 44. Ke3 {[%clk 0:00:12]} 1-0


[Site "https://www.chess.com"]

[Event "Titled Tuesday Blitz March 28 Late 2023"]
[White "Pirvulescu, Ekaterina"]
[Black "Jimenez, Joaquin"]
[WhiteFideId "13506374"]
[BlackFideId "109860"]
[WhiteElo "2006"]
[BlackElo "2163"]
[Result "1-0"]
[Round "08"]
[TimeControl "180+2"]
[Date "2023.03.28"]
[WhiteClock "0:00:30"]
[BlackClock "0:00:01"]

1. e4 {[%clk 0:03:00]}  e6 {[%clk 0:02:59]} 2. d4 {[%clk 0:02:59]}  d5 {[%clk 0:02:58]} 3. Nc3 {[%clk 0:02:57]}  Bb4 {[%clk 0:02:56]} 4. e5 {[%clk 0:02:48]}  c5 {[%clk 0:02:56]} 5. Bd2 {[%clk 0:02:46]}  cxd4 {[%clk 0:02:51]} 6. Nb5 {[%clk 0:02:45]}  Bxd2+ {[%clk 0:02:45]} 7. Qxd2 {[%clk 0:02:45]}  Nc6 {[%clk 0:02:44]} 8. f4 {[%clk 0:02:39]}  Nge7 {[%clk 0:02:38]} 9. Nd6+ {[%clk 0:02:34]}  Kf8 {[%clk 0:02:35]} 10. Nf3 {[%clk 0:02:34]}  Nf5 {[%clk 0:02:28]} 11. Ng5 {[%clk 0:02:32]}  Nxd6 {[%clk 0:02:24]} 12. exd6 {[%clk 0:02:30]}  Qxd6 {[%clk 0:02:25]} 13. O-O-O {[%clk 0:02:28]}  Bd7 {[%clk 0:02:19]} 14. Kb1 {[%clk 0:02:25]}  Rc8 {[%clk 0:02:10]} 15. Bd3 {[%clk 0:02:25]}  h6 {[%clk 0:01:46]} 16. Nf3 {[%clk 0:02:21]}  Ke7 {[%clk 0:01:32]} 17. Rhe1 {[%clk 0:02:20]}  Rhe8 {[%clk 0:01:23]} 18. Nh4 {[%clk 0:02:11]}  Kf8 {[%clk 0:01:21]} 19. g3 {[%clk 0:02:10]}  Nb4 {[%clk 0:01:11]} 20. Nf3 {[%clk 0:02:07]}  Qc5 {[%clk 0:00:58]} 21. Ne5 {[%clk 0:01:59]}  Re7 {[%clk 0:00:46]} 22. Rf1 {[%clk 0:01:57]}  Kg8 {[%clk 0:00:41]} 23. g4 {[%clk 0:01:53]}  Ba4 {[%clk 0:00:34]} 24. b3 {[%clk 0:01:45]}  Bb5 {[%clk 0:00:32]} 25. Rf2 {[%clk 0:01:31]}  Rec7 {[%clk 0:00:25]} 26. g5 {[%clk 0:01:20]}  hxg5 {[%clk 0:00:24]} 27. fxg5 {[%clk 0:01:18]}  a5 {[%clk 0:00:24]} 28. Rdf1 {[%clk 0:01:11]}  a4 {[%clk 0:00:20]} 29. Rxf7 {[%clk 0:01:06]}  Rxf7 {[%clk 0:00:19]} 30. Rxf7 {[%clk 0:01:06]}  Nxd3 {[%clk 0:00:19]} 31. Nxd3 {[%clk 0:00:52]}  Bxd3 {[%clk 0:00:17]} 32. Qxd3 {[%clk 0:00:49]}  Kxf7 {[%clk 0:00:18]} 33. g6+ {[%clk 0:00:48]}  Kg8 {[%clk 0:00:18]} 34. Qe2 {[%clk 0:00:39]}  Qd6 {[%clk 0:00:14]} 35. Qh5 {[%clk 0:00:39]}  Rc3 {[%clk 0:00:08]} 36. Qh7+ {[%clk 0:00:38]}  Kf8 {[%clk 0:00:08]} 37. Qh8+ {[%clk 0:00:38]}  Ke7 {[%clk 0:00:07]} 38. Qxg7+ {[%clk 0:00:39]}  Kd8 {[%clk 0:00:08]} 39. Qxd4 {[%clk 0:00:36]}  Rh3 {[%clk 0:00:05]} 40. g7 {[%clk 0:00:34]}  Qxh2 {[%clk 0:00:02]} 41. g8=Q+ {[%clk 0:00:34]}  Kd7 {[%clk 0:00:02]} 42. Qf7+ {[%clk 0:00:33]}  Kc6 {[%clk 0:00:03]} 43. Qxe6+ {[%clk 0:00:33]}  Qd6 {[%clk 0:00:03]} 44. Qxd6+ {[%clk 0:00:32]}  Kxd6 {[%clk 0:00:03]} 45. Qf6+ {[%clk 0:00:32]}  Kc5 {[%clk 0:00:03]} 46. Qf2+ {[%clk 0:00:32]}  Kc6 {[%clk 0:00:02]} 47. bxa4 {[%clk 0:00:30]}  Rh1+ {[%clk 0:00:01]} 48. Kb2 {[%clk 0:00:30]} 1-0


[Site "https://www.chess.com"]

[Event "Titled Tuesday Blitz March 28 Late 2023"]
[White "Lalanne, Pablo"]
[Black "Necula, Iulian"]
[WhiteFideId "112151"]
[BlackFideId "1232380"]
[WhiteElo "2120"]
[BlackElo "1790"]
[Result "1-0"]
[Round "08"]
[TimeControl "180+2"]
[Date "2023.03.28"]
[WhiteClock "0:01:05"]
[BlackClock "0:00:58"]

1. e4 {[%clk 0:03:00]}  d6 {[%clk 0:03:00]} 2. d4 {[%clk 0:03:00]}  Nf6 {[%clk 0:03:01]} 3. Nc3 {[%clk 0:02:59]}  e5 {[%clk 0:03:02]} 4. Nf3 {[%clk 0:02:58]}  Nbd7 {[%clk 0:03:01]} 5. Bc4 {[%clk 0:02:56]}  Be7 {[%clk 0:03:01]} 6. O-O {[%clk 0:02:55]}  h6 {[%clk 0:03:01]} 7. Qe2 {[%clk 0:02:48]}  c6 {[%clk 0:03:01]} 8. a4 {[%clk 0:02:47]}  a5 {[%clk 0:03:01]} 9. Rd1 {[%clk 0:02:47]}  Qc7 {[%clk 0:03:00]} 10. b3 {[%clk 0:02:46]}  O-O {[%clk 0:02:59]} 11. Bb2 {[%clk 0:02:46]}  Re8 {[%clk 0:02:58]} 12. h3 {[%clk 0:02:41]}  Nf8 {[%clk 0:02:58]} 13. dxe5 {[%clk 0:02:39]}  dxe5 {[%clk 0:02:57]} 14. Qe3 {[%clk 0:02:30]}  Be6 {[%clk 0:02:51]} 15. Ne2 {[%clk 0:02:28]}  Bxc4 {[%clk 0:02:50]} 16. Bxe5 {[%clk 0:02:26]}  Qc8 {[%clk 0:02:36]} 17. bxc4 {[%clk 0:02:26]}  Ng6 {[%clk 0:02:34]} 18. Bc3 {[%clk 0:02:21]}  Bb4 {[%clk 0:02:30]} 19. Bxf6 {[%clk 0:02:18]}  gxf6 {[%clk 0:02:28]} 20. Qxh6 {[%clk 0:02:14]}  Bf8 {[%clk 0:02:24]} 21. Qe3 {[%clk 0:02:11]}  Bg7 {[%clk 0:02:23]} 22. Rab1 {[%clk 0:02:05]}  Rb8 {[%clk 0:02:21]} 23. Ng3 {[%clk 0:02:04]}  Qe6 {[%clk 0:01:38]} 24. Qc5 {[%clk 0:01:55]}  b6 {[%clk 0:01:17]} 25. Qd6 {[%clk 0:01:48]}  Qxc4 {[%clk 0:01:14]} 26. Nh5 {[%clk 0:01:31]}  Qe6 {[%clk 0:01:13]} 27. Qg3 {[%clk 0:01:19]}  Qxe4 {[%clk 0:01:03]} 28. Rd4 {[%clk 0:01:14]}  Qe5 {[%clk 0:01:02]} 29. Nxe5 {[%clk 0:01:12]}  fxe5 {[%clk 0:01:02]} 30. Rg4 {[%clk 0:01:10]}  Bh8 {[%clk 0:00:58]} 31. Rxg6+ {[%clk 0:01:10]}  fxg6 {[%clk 0:00:58]} 32. Qxg6+ {[%clk 0:01:10]}  Kf8 {[%clk 0:00:59]} 33. Rb3 {[%clk 0:01:09]}  Rb7 {[%clk 0:00:58]} 34. Rf3+ {[%clk 0:01:09]}  Ke7 {[%clk 0:00:58]} 35. Rf7+ {[%clk 0:01:05]} 1-0


[Site "https://www.chess.com"]

[Event "Titled Tuesday Blitz March 28 Late 2023"]
[White "Narva, Triin"]
[Black "Eggleston, Thomas A"]
[WhiteFideId "4502680"]
[BlackFideId "412139"]
[WhiteElo "1944"]
[BlackElo "2155"]
[Result "1-0"]
[Round "08"]
[TimeControl "180+2"]
[Date "2023.03.28"]
[WhiteClock "0:00:07"]
[BlackClock "0:00:03"]

1. e4 {[%clk 0:02:57]}  e6 {[%clk 0:03:00]} 2. d4 {[%clk 0:02:57]}  d5 {[%clk 0:03:00]} 3. Nd2 {[%clk 0:02:58]}  c5 {[%clk 0:03:00]} 4. Ngf3 {[%clk 0:02:58]}  cxd4 {[%clk 0:02:59]} 5. Nxd4 {[%clk 0:02:57]}  Nc6 {[%clk 0:02:59]} 6. Nxc6 {[%clk 0:02:56]}  bxc6 {[%clk 0:02:58]} 7. Bd3 {[%clk 0:02:53]}  Bd6 {[%clk 0:02:50]} 8. O-O {[%clk 0:02:52]}  Nf6 {[%clk 0:02:48]} 9. f4 {[%clk 0:02:41]}  h5 {[%clk 0:02:07]} 10. h3 {[%clk 0:02:20]}  Qb6+ {[%clk 0:01:59]} 11. Kh1 {[%clk 0:02:12]}  Ng4 {[%clk 0:01:56]} 12. Qe1 {[%clk 0:01:10]}  Bc5 {[%clk 0:01:48]} 13. Nb3 {[%clk 0:01:00]}  Nf2+ {[%clk 0:01:20]} 14. Kh2 {[%clk 0:01:00]}  Nxe4 {[%clk 0:00:54]} 15. Bxe4 {[%clk 0:00:56]}  dxe4 {[%clk 0:00:54]} 16. Qxe4 {[%clk 0:00:47]}  Ba6 {[%clk 0:00:53]} 17. Rd1 {[%clk 0:00:34]}  Bf2 {[%clk 0:00:50]} 18. f5 {[%clk 0:00:25]}  O-O {[%clk 0:00:42]} 19. f6 {[%clk 0:00:23]}  gxf6 {[%clk 0:00:20]} 20. Qf3 {[%clk 0:00:18]}  f5 {[%clk 0:00:09]} 21. Qxh5 {[%clk 0:00:17]}  f4 {[%clk 0:00:04]} 22. Bxf4 {[%clk 0:00:16]}  Qb5 {[%clk 0:00:03]} 23. Be5 {[%clk 0:00:07]} 1-0


[Site "https://www.chess.com"]

[Event "Titled Tuesday Blitz March 28 Late 2023"]
[White "Maranhao,Jose Renato Ruiz"]
[Black "lluiss"]
[WhiteFideId "2135175"]
[WhiteElo "1970"]
[BlackElo "2179"]
[Result "0-1"]
[Round "08"]
[TimeControl "180+2"]
[Date "2023.03.28"]
[WhiteClock "0:00:03"]
[BlackClock "0:00:12"]

1. e4 {[%clk 0:02:09]}  c5 {[%clk 0:02:55]} 2. d4 {[%clk 0:02:10]}  cxd4 {[%clk 0:02:54]} 3. c3 {[%clk 0:02:11]}  dxc3 {[%clk 0:02:54]} 4. Nxc3 {[%clk 0:02:12]}  Nc6 {[%clk 0:02:54]} 5. Nf3 {[%clk 0:02:12]}  e6 {[%clk 0:02:50]} 6. Bc4 {[%clk 0:02:13]}  d6 {[%clk 0:02:50]} 7. O-O {[%clk 0:02:13]}  a6 {[%clk 0:02:50]} 8. a4 {[%clk 0:02:10]}  Be7 {[%clk 0:02:49]} 9. Be3 {[%clk 0:02:10]}  Bd7 {[%clk 0:02:49]} 10. Qe2 {[%clk 0:02:10]}  Nf6 {[%clk 0:02:49]} 11. Rac1 {[%clk 0:02:10]}  Qa5 {[%clk 0:02:41]} 12. Nd4 {[%clk 0:01:51]}  Nxd4 {[%clk 0:02:30]} 13. Bxd4 {[%clk 0:01:52]}  O-O {[%clk 0:02:24]} 14. f4 {[%clk 0:01:15]}  Bc6 {[%clk 0:02:10]} 15. f5 {[%clk 0:00:44]}  e5 {[%clk 0:02:07]} 16. Be3 {[%clk 0:00:34]}  b5 {[%clk 0:01:20]} 17. Bd5 {[%clk 0:00:13]}  Bxd5 {[%clk 0:01:10]} 18. exd5 {[%clk 0:00:10]}  b4 {[%clk 0:01:09]} 19. Nd1 {[%clk 0:00:06]}  Nxd5 {[%clk 0:01:08]} 20. Bd2 {[%clk 0:00:04]}  Rfc8 {[%clk 0:00:59]} 21. Rxc8+ {[%clk 0:00:02]}  Rxc8 {[%clk 0:00:57]} 22. h3 {[%clk 0:00:03]}  Qc5+ {[%clk 0:00:55]} 23. Kh2 {[%clk 0:00:01]}  a5 {[%clk 0:00:55]} 24. g4 {[%clk 0:00:02]}  Qc4 {[%clk 0:00:55]} 25. Qxc4 {[%clk 0:00:01]}  Rxc4 {[%clk 0:00:54]} 26. b3 {[%clk 0:00:02]}  Rc2 {[%clk 0:00:53]} 27. Rf2 {[%clk 0:00:02]}  Nc3 {[%clk 0:00:46]} 28. Nxc3 {[%clk 0:00:01]}  bxc3 {[%clk 0:00:45]} 29. Be3 {[%clk 0:00:01]}  Rxf2+ {[%clk 0:00:41]} 30. Bxf2 {[%clk 0:00:02]}  d5 {[%clk 0:00:41]} 31. Be3 {[%clk 0:00:01]}  d4 {[%clk 0:00:40]} 32. Bc1 {[%clk 0:00:01]}  Kf8 {[%clk 0:00:38]} 33. Kg2 {[%clk 0:00:02]}  Ke8 {[%clk 0:00:38]} 34. Kf3 {[%clk 0:00:02]}  Kd7 {[%clk 0:00:38]} 35. Ke4 {[%clk 0:00:03]}  Kd6 {[%clk 0:00:37]} 36. g5 {[%clk 0:00:02]}  f6 {[%clk 0:00:36]} 37. g6 {[%clk 0:00:02]}  hxg6 {[%clk 0:00:34]} 38. fxg6 {[%clk 0:00:03]}  Ke6 {[%clk 0:00:33]} 39. h4 {[%clk 0:00:03]}  f5+ {[%clk 0:00:33]} 40. Kd3 {[%clk 0:00:03]}  Bxh4 {[%clk 0:00:30]} 41. Ba3 {[%clk 0:00:02]}  Bg3 {[%clk 0:00:28]} 42. Bf8 {[%clk 0:00:02]}  Kf6 {[%clk 0:00:24]} 43. b4 {[%clk 0:00:03]}  axb4 {[%clk 0:00:23]} 44. a5 {[%clk 0:00:03]}  e4+ {[%clk 0:00:19]} 45. Kxd4 {[%clk 0:00:02]}  c2 {[%clk 0:00:18]} 46. Bxb4 {[%clk 0:00:02]}  c1=Q {[%clk 0:00:17]} 47. Bc3 {[%clk 0:00:03]}  Qa3 {[%clk 0:00:12]} 48. a6 {[%clk 0:00:03]}  Kxg6 {[%clk 0:00:12]} 0-1


[Site "https://www.chess.com"]

[Event "Titled Tuesday Blitz March 28 Late 2023"]
[White "Pein, Jonathan"]
[Black "Stead, Kerry"]
[WhiteFideId "417092"]
[BlackFideId "3202577"]
[WhiteElo "2151"]
[BlackElo "1997"]
[Result "1-0"]
[Round "08"]
[TimeControl "180+2"]
[Date "2023.03.28"]
[WhiteClock "0:02:38"]
[BlackClock "0:00:08"]

1. e4 {[%clk 0:02:59]}  c6 {[%clk 0:00:18]} 2. b3 {[%clk 0:02:53]}  d5 {[%clk 0:00:17]} 3. Bb2 {[%clk 0:02:54]}  Nf6 {[%clk 0:00:15]} 4. e5 {[%clk 0:02:52]}  Nfd7 {[%clk 0:00:15]} 5. e6 {[%clk 0:02:53]}  fxe6 {[%clk 0:00:14]} 6. Nf3 {[%clk 0:02:54]}  Nf6 {[%clk 0:00:13]} 7. Ne5 {[%clk 0:02:53]}  Nbd7 {[%clk 0:00:13]} 8. d4 {[%clk 0:02:50]}  g6 {[%clk 0:00:13]} 9. Bd3 {[%clk 0:02:50]}  Nxe5 {[%clk 0:00:10]} 10. dxe5 {[%clk 0:02:50]}  Nd7 {[%clk 0:00:09]} 11. Qg4 {[%clk 0:02:45]}  Nc5 {[%clk 0:00:08]} 12. Be2 {[%clk 0:02:38]} 1-0


[Site "https://www.chess.com"]

[Event "Titled Tuesday Blitz March 28 Late 2023"]
[White "Sadhwani, Raunak"]
[Black "Firouzja, Alireza"]
[WhiteFideId "35093487"]
[BlackFideId "12573981"]
[WhiteElo "2631"]
[BlackElo "2904"]
[Result "1-0"]
[Round "09"]
[TimeControl "180+2"]
[Date "2023.03.28"]
[WhiteClock "0:00:03"]
[BlackClock "0:00:01"]

1. e4 {[%clk 0:03:00]}  c5 {[%clk 0:02:59]} 2. Nf3 {[%clk 0:03:01]}  d6 {[%clk 0:03:00]} 3. Bb5+ {[%clk 0:03:01]}  Nd7 {[%clk 0:03:00]} 4. a4 {[%clk 0:03:00]}  a6 {[%clk 0:02:50]} 5. Be2 {[%clk 0:02:59]}  Ngf6 {[%clk 0:02:46]} 6. Nc3 {[%clk 0:02:59]}  b6 {[%clk 0:02:46]} 7. d4 {[%clk 0:02:58]}  cxd4 {[%clk 0:02:38]} 8. Qxd4 {[%clk 0:02:59]}  Bb7 {[%clk 0:02:37]} 9. O-O {[%clk 0:02:50]}  e5 {[%clk 0:02:36]} 10. Qe3 {[%clk 0:02:50]}  Nc5 {[%clk 0:02:37]} 11. Rd1 {[%clk 0:02:46]}  Qc7 {[%clk 0:02:22]} 12. Nd2 {[%clk 0:02:47]}  Be7 {[%clk 0:02:18]} 13. b3 {[%clk 0:02:47]}  Ne6 {[%clk 0:02:09]} 14. Bb2 {[%clk 0:02:43]}  Nd4 {[%clk 0:02:02]} 15. Bd3 {[%clk 0:02:43]}  O-O {[%clk 0:02:02]} 16. h3 {[%clk 0:02:34]}  Rfe8 {[%clk 0:01:57]} 17. Nf3 {[%clk 0:02:33]}  Ne6 {[%clk 0:01:41]} 18. Bc4 {[%clk 0:02:26]}  Qc5 {[%clk 0:01:41]} 19. Qe1 {[%clk 0:01:56]}  Qc7 {[%clk 0:00:58]} 20. Qe3 {[%clk 0:01:55]}  Rad8 {[%clk 0:00:44]} 21. Ba3 {[%clk 0:01:47]}  Nf4 {[%clk 0:00:39]} 22. Bb2 {[%clk 0:01:10]}  h6 {[%clk 0:00:37]} 23. Re1 {[%clk 0:00:57]}  Bf8 {[%clk 0:00:33]} 24. Rad1 {[%clk 0:00:57]}  Rc8 {[%clk 0:00:28]} 25. Nh4 {[%clk 0:00:48]}  Kh7 {[%clk 0:00:23]} 26. Kh2 {[%clk 0:00:42]}  g6 {[%clk 0:00:20]} 27. g3 {[%clk 0:00:42]}  Ne6 {[%clk 0:00:21]} 28. Nf3 {[%clk 0:00:36]}  Bg7 {[%clk 0:00:20]} 29. Re2 {[%clk 0:00:37]}  Rcd8 {[%clk 0:00:17]} 30. Nd5 {[%clk 0:00:22]}  Nxd5 {[%clk 0:00:16]} 31. Bxd5 {[%clk 0:00:23]}  Bc8 {[%clk 0:00:11]} 32. Ba3 {[%clk 0:00:20]}  a5 {[%clk 0:00:10]} 33. Red2 {[%clk 0:00:19]}  Nc5 {[%clk 0:00:10]} 34. Bxc5 {[%clk 0:00:19]}  bxc5 {[%clk 0:00:11]} 35. Nh4 {[%clk 0:00:16]}  Rf8 {[%clk 0:00:11]} 36. Qe2 {[%clk 0:00:16]}  Bf6 {[%clk 0:00:11]} 37. Ng2 {[%clk 0:00:16]}  Bg5 {[%clk 0:00:10]} 38. Rd3 {[%clk 0:00:16]}  h5 {[%clk 0:00:08]} 39. h4 {[%clk 0:00:15]}  Bh6 {[%clk 0:00:09]} 40. Ne3 {[%clk 0:00:15]}  Qe7 {[%clk 0:00:05]} 41. Bc4 {[%clk 0:00:15]}  f5 {[%clk 0:00:03]} 42. Nd5 {[%clk 0:00:15]}  Qg7 {[%clk 0:00:03]} 43. Nc3 {[%clk 0:00:09]}  f4 {[%clk 0:00:03]} 44. Rxd6 {[%clk 0:00:06]}  Rxd6 {[%clk 0:00:03]} 45. Rxd6 {[%clk 0:00:06]}  fxg3+ {[%clk 0:00:04]} 46. fxg3 {[%clk 0:00:06]}  Bg4 {[%clk 0:00:04]} 47. Qe1 {[%clk 0:00:07]}  Qe7 {[%clk 0:00:04]} 48. Rd3 {[%clk 0:00:04]}  Qf6 {[%clk 0:00:03]} 49. Kg1 {[%clk 0:00:04]}  Bh3 {[%clk 0:00:03]} 50. Nd5 {[%clk 0:00:05]}  Qd8 {[%clk 0:00:02]} 51. Kh2 {[%clk 0:00:03]}  Bg4 {[%clk 0:00:02]} 52. Ne3 {[%clk 0:00:03]}  Qc8 {[%clk 0:00:02]} 53. Nxg4 {[%clk 0:00:03]}  Qxg4 {[%clk 0:00:02]} 54. Kg2 {[%clk 0:00:04]}  g5 {[%clk 0:00:02]} 55. hxg5 {[%clk 0:00:04]}  Bxg5 {[%clk 0:00:02]} 56. Bd5 {[%clk 0:00:04]}  h4 {[%clk 0:00:02]} 57. Qh1 {[%clk 0:00:03]}  Kg7 {[%clk 0:00:02]} 58. Qd1 {[%clk 0:00:03]}  h3+ {[%clk 0:00:02]} 59. Kh1 {[%clk 0:00:02]}  Qxd1+ {[%clk 0:00:01]} 60. Rxd1 {[%clk 0:00:03]}  Rf2 {[%clk 0:00:01]} 61. Be6 {[%clk 0:00:03]} 1-0


[Site "https://www.chess.com"]